bitfinex/quotes_BTCUSD_20250226
["timestamp","ask_amount","ask_price","bid_price","bid_amount"]
[1740555400339,0.18212734,88952.0,88951.0,0.0024242]
[1740555400666,0.18212734,88952.0,88951.0,0.0054242]
[1740555400867,0.20321842,88952.0,88951.0,0.0034242]
[1740555401282,0.0831,88950.0,88921.0,0.033808]
[1740555401435,0.0831,88933.0,88914.0,0.7]
[1740555401854,0.168702,88914.0,88907.0,0.01348]
[1740555402034,0.168702,88914.0,88909.0,0.00992]
[1740555402666,0.168702,88914.0,88907.0,0.0234]
[1740555402908,0.168702,88914.0,88910.0,0.10090866]
[1740555402909,0.00841572,88914.0,88910.0,0.10090866]
[1740555403103,0.00883285,88914.0,88910.0,0.10090866]
[1740555403351,0.168708,88911.0,88910.0,0.10090866]
[1740555403546,0.19470417,88911.0,88910.0,0.10090866]
[1740555404152,0.19470417,88911.0,88910.0,0.10190866]
[1740555404355,0.19470417,88911.0,88910.0,0.10590866]
[1740555404576,0.20311989,88911.0,88910.0,0.10090866]
[1740555404960,0.20411989,88911.0,88910.0,0.10390866]
[1740555405234,0.20411989,88911.0,88910.0,0.10090866]
[1740555405430,0.22512852,88911.0,88910.0,0.10090866]
[1740555407049,0.2167128,88911.0,88910.0,0.10090866]
[1740555407251,0.2157128,88911.0,88910.0,0.10090866]
[1740555407622,0.2167128,88911.0,88910.0,0.10590866]
[1740555407815,0.2167128,88911.0,88910.0,0.10633286]
[1740555407985,0.2167128,88911.0,88910.0,0.0094242]
[1740555407986,0.2157128,88911.0,88910.0,0.0094242]
[1740555408242,0.2157128,88911.0,88910.0,0.0004242]
[1740555408414,0.2167128,88911.0,88910.0,0.0014242]
[1740555408569,0.2167128,88911.0,88910.0,0.0064242]
[1740555408770,0.2167128,88911.0,88910.0,0.0014242]
[1740555408968,0.23013457,88911.0,88910.0,0.0014242]
[1740555409194,0.06142657,88911.0,88910.0,0.0014242]
[1740555409397,0.56366729,88911.0,88910.0,0.0014242]
[1740555409741,0.56266729,88911.0,88910.0,0.0004242]
[1740555410218,0.56266729,88911.0,88910.0,0.0014242]
[1740555410639,0.5710444,88911.0,88910.0,0.0004242]
[1740555411097,0.5710444,88911.0,88910.0,0.0014242]
[1740555411905,0.55762263,88911.0,88910.0,0.0014242]
[1740555414268,0.52408991,88911.0,88910.0,0.0014242]
[1740555415269,0.00837711,88911.0,88910.0,0.0014242]
[1740555415426,0.17708511,88911.0,88910.0,0.0014242]
[1740555416039,0.20956603,88911.0,88910.0,0.0014242]
[1740555417347,0.23463528,88911.0,88910.0,0.0014242]
[1740555418526,0.468713,88908.0,88907.0,0.01245667]
[1740555419898,0.468713,88908.0,88907.0,0.01345667]
[1740555420310,0.468713,88908.0,88907.0,0.01445667]
[1740555421356,0.57864606,88908.0,88907.0,0.01345667]
[1740555421571,0.58264606,88908.0,88907.0,0.01245667]
[1740555421991,0.58864606,88908.0,88907.0,0.01345667]
[1740555422580,0.60201944,88908.0,88907.0,0.01345667]
[1740555422959,0.7158764,88908.0,88907.0,0.01345667]
[1740555423693,0.99569937,88908.0,88907.0,0.01345667]
[1740555423891,0.99969937,88908.0,88907.0,0.01345667]
[1740555424469,0.98632599,88908.0,88907.0,0.01345667]
[1740555424876,0.86246903,88908.0,88907.0,0.01245667]
[1740555425076,0.92510988,88908.0,88907.0,0.01245667]
[1740555425280,0.96011606,88908.0,88907.0,0.01345667]
[1740555425482,0.79196903,88908.0,88907.0,0.01345667]
[1740555426154,0.79596903,88908.0,88907.0,0.01345667]
[1740555426573,0.78996903,88908.0,88907.0,0.01245667]
[1740555426807,0.79196903,88908.0,88907.0,0.01345667]
[1740555427021,0.79596903,88908.0,88907.0,0.01345667]
[1740555427210,0.79596903,88908.0,88907.0,0.01245667]
[1740555427415,0.80096903,88908.0,88907.0,0.01345667]
[1740555427624,0.79096903,88908.0,88907.0,0.01345667]
[1740555427802,0.78796903,88908.0,88907.0,0.01245667]
[1740555428001,0.79096903,88908.0,88907.0,0.01245667]
[1740555428199,0.49464778,88908.0,88907.0,0.01245667]
[1740555429214,0.49264778,88908.0,88907.0,0.01245667]
[1740555429589,0.49364778,88908.0,88907.0,0.01245667]
[1740555430205,0.49264778,88908.0,88907.0,0.01245667]
[1740555430419,0.49464778,88908.0,88907.0,0.01245667]
[1740555430629,0.68590474,88908.0,88907.0,0.01245667]
[1740555430828,0.68590474,88908.0,88907.0,6.7e-07]
[1740555430977,0.168772,88877.0,88876.0,0.0102]
[1740555431161,0.225019,88882.0,88869.0,0.0454]
[1740555431162,0.168774,88876.0,88869.0,0.0454]
[1740555431757,0.19982649,88876.0,88869.0,0.0454]
[1740555432383,0.20863661,88876.0,88869.0,0.0454]
[1740555433062,0.1985189,88876.0,88869.0,0.214186]
[1740555433406,0.1985189,88876.0,88875.0,0.0024242]
[1740555433605,0.0297449,88876.0,88875.0,0.0024242]
[1740555433960,0.00881012,88876.0,88875.0,0.0024242]
[1740555434304,0.00881012,88876.0,88875.0,0.2523002]
[1740555434801,0.00041687,88876.0,88875.0,0.0835242]
[1740555434946,0.00041687,88876.0,88875.0,0.2523002]
[1740555435149,0.00041687,88876.0,88875.0,0.2503002]
[1740555435352,0.00881587,88876.0,88875.0,0.2503002]
[1740555436265,0.00981587,88876.0,88875.0,0.2503002]
[1740555436626,0.00981587,88876.0,88875.0,0.0855242]
[1740555436827,0.00981587,88876.0,88875.0,0.2543002]
[1740555437427,0.00881587,88876.0,88875.0,0.3008002]
[1740555437824,0.17858987,88876.0,88875.0,0.0044242]
[1740555439241,0.17758987,88876.0,88875.0,0.0044242]
[1740555439439,0.17858987,88876.0,88875.0,0.0044242]
[1740555439842,0.17858987,88876.0,88875.0,0.0004242]
[1740555440066,0.17758987,88876.0,88875.0,0.0024242]
[1740555441160,0.16919087,88876.0,88875.0,0.0024242]
[1740555442695,0.46919087,88876.0,88875.0,0.0024242]
[1740555442922,0.46919087,88876.0,88875.0,0.0004242]
[1740555443126,0.46919087,88876.0,88875.0,0.0024242]
[1740555443390,0.51609087,88876.0,88875.0,0.0004242]
[1740555444064,0.54447448,88876.0,88875.0,0.0024242]
[1740555444271,0.54447448,88876.0,88875.0,0.0004242]
[1740555444469,0.54647448,88876.0,88875.0,0.0004242]
[1740555444654,0.66033144,88876.0,88875.0,0.0004242]
[1740555444823,0.62607448,88876.0,88875.0,0.0004242]
[1740555445231,0.64705846,88876.0,88875.0,0.0004242]
[1740555445427,0.64805846,88876.0,88875.0,0.0004242]
[1740555445995,0.64705846,88876.0,88875.0,0.0004242]
[1740555446385,0.62467485,88876.0,88875.0,0.0004242]
[1740555446971,0.62967485,88876.0,88875.0,0.0004242]
[1740555449669,0.62567485,88876.0,88875.0,0.0004242]
[1740555449880,0.62367485,88876.0,88875.0,0.0004242]
[1740555450133,0.15348398,88876.0,88875.0,0.0004242]
[1740555450468,0.32725798,88876.0,88875.0,0.0004242]
[1740555452153,0.306274,88876.0,88875.0,0.0004242]
[1740555453634,0.606274,88876.0,88875.0,0.0004242]
[1740555454014,0.009,88876.0,88875.0,0.0004242]
[1740555454439,0.177774,88876.0,88875.0,0.0004242]
[1740555454641,0.172774,88876.0,88875.0,0.0004242]
[1740555455065,0.168774,88876.0,88875.0,0.0004242]
[1740555455480,0.172774,88876.0,88875.0,0.0004242]
[1740555455867,0.168774,88876.0,88875.0,0.0004242]
[1740555456078,0.168772,88878.0,88875.0,0.0004242]
[1740555456284,0.002,88876.0,88875.0,0.00054979]
[1740555456478,0.170774,88876.0,88875.0,0.00054979]
[1740555456676,0.174774,88876.0,88875.0,0.00054979]
[1740555456942,0.168774,88876.0,88875.0,0.00054979]
[1740555457885,0.170774,88876.0,88875.0,0.00054979]
[1740555458425,0.171774,88876.0,88875.0,0.00054979]
[1740555459935,0.003,88876.0,88875.0,0.00054979]
[1740555460138,0.003,88876.0,88875.0,0.16932579]
[1740555460357,0.003,88876.0,88875.0,0.00054979]
[1740555461251,0.001,88876.0,88875.0,0.00054979]
[1740555461442,0.3,88889.0,88875.0,0.00054979]
[1740555461572,0.168768,88879.0,88875.0,0.00054979]
[1740555461772,0.225002,88888.0,88876.0,0.01111355]
[1740555462110,0.224997,88890.0,88875.0,0.00254979]
[1740555462355,0.3,88893.0,88875.0,0.00254979]
[1740555462487,0.168774,88877.0,88876.0,0.01111355]
[1740555462983,0.03178954,88891.0,88875.0,0.00054979]
[1740555463189,0.168774,88876.0,88875.0,0.00054979]
[1740555463383,0.168774,88876.0,88875.0,0.00254979]
[1740555463607,0.168774,88876.0,88875.0,0.00054979]
[1740555464485,0.168774,88876.0,88875.0,0.00254979]
[1740555464686,0.168774,88876.0,88875.0,0.00054979]
[1740555465292,0.168774,88876.0,88875.0,0.00154979]
[1740555465730,0.168774,88876.0,88875.0,0.00054979]
[1740555466145,0.169774,88876.0,88875.0,0.00154979]
[1740555466347,0.168774,88876.0,88875.0,0.00154979]
[1740555466557,0.168774,88876.0,88875.0,0.00054979]
[1740555466759,0.168774,88876.0,88875.0,0.00154979]
[1740555467094,0.1696224,88876.0,88875.0,0.00154979]
[1740555468160,0.1696224,88876.0,88875.0,0.00054979]
[1740555469094,0.1696224,88876.0,88875.0,0.00154979]
[1740555469662,0.1696224,88876.0,88875.0,0.00054979]
[1740555469860,0.1696224,88876.0,88875.0,0.00154979]
[1740555471173,0.1696224,88876.0,88875.0,0.00054979]
[1740555471597,0.1696224,88876.0,88875.0,0.00154979]
[1740555473755,0.168774,88876.0,88875.0,0.00154979]
[1740555475803,0.168774,88876.0,88875.0,0.00054979]
[1740555476241,0.168774,88876.0,88875.0,0.00154979]
[1740555476427,0.169774,88876.0,88875.0,0.00154979]
[1740555482219,0.168774,88876.0,88875.0,0.00054979]
[1740555482647,0.169774,88876.0,88875.0,0.00154979]
[1740555485058,0.170334,88876.0,88875.0,0.00154979]
[1740555489917,0.168784,88871.0,88865.0,0.168793]
[1740555490128,0.168784,88871.0,88867.0,0.00041687]
[1740555490298,0.00156,88876.0,88867.0,0.00041687]
[1740555490299,0.225035,88875.0,88867.0,0.00041687]
[1740555490500,0.00156,88876.0,88868.0,0.01112502]
[1740555490501,0.168787,88869.0,88868.0,0.01112502]
[1740555490696,0.168789,88868.0,88867.0,0.00041687]
[1740555491205,0.225037,88874.0,88867.0,0.00041687]
[1740555492434,0.168789,88868.0,88867.0,0.00041687]
[1740555492871,0.168789,88868.0,88867.0,0.00141687]
[1740555494065,0.168789,88868.0,88867.0,0.00341687]
[1740555495883,0.00056,88876.0,88867.0,0.00341687]
[1740555496315,0.168785,88871.0,88867.0,0.00341687]
[1740555496521,0.225037,88874.0,88867.0,0.00341687]
[1740555496675,0.168785,88870.0,88867.0,0.00041687]
[1740555496878,0.225044,88872.0,88867.0,0.00041687]
[1740555497079,0.168785,88870.0,88867.0,0.00041687]
[1740555497581,0.168784,88871.0,88867.0,0.00041687]
[1740555497907,0.225044,88872.0,88867.0,0.00041687]
[1740555498479,0.168783,88871.0,88867.0,0.00041687]
[1740555498761,0.168783,88871.0,88867.0,0.00141687]
[1740555499012,0.168783,88871.0,88867.0,0.00041687]
[1740555499211,0.225044,88872.0,88867.0,0.00141687]
[1740555499364,0.168788,88869.0,88867.0,0.00141687]
[1740555499578,0.168788,88869.0,88867.0,0.00041687]
[1740555499896,0.168788,88869.0,88867.0,0.00141687]
[1740555500253,0.168788,88869.0,88867.0,0.00041687]
[1740555500454,0.168789,88868.0,88867.0,0.00041687]
[1740555500901,0.225049,88870.0,88867.0,0.00041687]
[1740555501079,0.168789,88868.0,88867.0,0.00041687]
[1740555501521,0.168789,88868.0,88867.0,0.00241687]
[1740555501922,0.225049,88870.0,88867.0,0.00041687]
[1740555502158,0.168789,88869.0,88867.0,0.00241687]
[1740555502355,0.168789,88869.0,88867.0,0.00041687]
[1740555502741,0.225049,88870.0,88867.0,0.00341687]
[1740555503122,0.225049,88870.0,88867.0,0.00041687]
[1740555503319,0.225039,88874.0,88867.0,0.00041687]
[1740555503320,0.00056,88876.0,88867.0,0.00041687]
[1740555503529,0.168789,88868.0,88867.0,0.00241687]
[1740555505221,0.168787,88869.0,88867.0,0.00241687]
[1740555505400,0.0008486,88871.0,88867.0,0.00041687]
[1740555505611,0.0008486,88871.0,88867.0,0.00241687]
[1740555505919,0.0008486,88871.0,88867.0,0.00041687]
[1740555506126,0.168789,88868.0,88867.0,0.00041687]
[1740555506323,0.168789,88868.0,88867.0,0.00341687]
[1740555506526,0.168789,88868.0,88867.0,0.00041687]
[1740555506889,0.168789,88868.0,88867.0,0.00141687]
[1740555507933,0.0008486,88871.0,88867.0,0.00141687]
[1740555508157,0.225047,88870.0,88867.0,0.00141687]
[1740555508308,0.168787,88869.0,88867.0,0.00141687]
[1740555508512,0.168786,88870.0,88867.0,0.00141687]
[1740555508712,0.0008486,88871.0,88867.0,0.00141687]
[1740555508892,0.0008486,88871.0,88868.0,0.168788]
[1740555509101,0.0008486,88871.0,88870.0,0.168785]
[1740555509533,0.0008486,88871.0,88867.0,0.00441687]
[1740555509833,0.0008486,88871.0,88868.0,0.168789]
[1740555510834,0.0008486,88871.0,88869.0,0.168787]
[1740555511254,0.0008486,88871.0,88870.0,0.001]
[1740555512170,0.0008486,88871.0,88870.0,0.169785]
[1740555513066,0.0008486,88871.0,88870.0,0.168785]
[1740555513443,0.0008486,88871.0,88868.0,0.22505]
[1740555513854,0.0008486,88871.0,88870.0,0.001]
[1740555514406,0.0008486,88871.0,88870.0,0.169785]
[1740555514701,0.168776,88876.0,88867.0,0.01133687]
[1740555514907,0.168776,88876.0,88868.0,0.001]
[1740555515110,0.168775,88876.0,88868.0,0.169789]
[1740555515310,0.168779,88874.0,88868.0,0.001]
[1740555515532,0.3816,88890.0,88868.0,0.001]
[1740555515729,0.16878,88873.0,88868.0,0.001]
[1740555515946,0.168782,88872.0,88868.0,0.001]
[1740555516124,0.168782,88872.0,88867.0,0.01133687]
[1740555516324,0.168781,88873.0,88867.0,0.01133687]
[1740555516661,0.168781,88873.0,88870.0,0.001]
[1740555516867,0.3,88888.0,88867.0,0.01133687]
[1740555517024,0.225039,88874.0,88868.0,0.001]
[1740555517394,0.3,88888.0,88867.0,0.01133687]
[1740555517566,0.168789,88868.0,88867.0,0.01133687]
[1740555517802,0.224999,88889.0,88867.0,0.01233687]
[1740555517996,0.3,88888.0,88870.0,0.0004242]
[1740555518225,0.1696314,88871.0,88870.0,0.0004242]
[1740555518945,0.0008484,88871.0,88870.0,0.0004242]
[1740555519256,0.1696314,88871.0,88870.0,0.0004242]
[1740555519461,0.0008484,88871.0,88870.0,0.0004242]
[1740555519678,0.1696314,88871.0,88870.0,0.0004242]
[1740555519880,0.1696314,88871.0,88870.0,0.0014242]
[1740555521190,0.0008484,88871.0,88870.0,0.0014242]
[1740555522536,0.02189758,88871.0,88870.0,0.0014242]
[1740555523793,0.19068058,88871.0,88870.0,0.0014242]
[1740555523990,0.02189758,88871.0,88870.0,0.0014242]
[1740555525628,0.0008484,88871.0,88870.0,0.0014242]
[1740555528255,0.02189671,88871.0,88870.0,0.0014242]
[1740555528959,0.02189671,88871.0,88870.0,0.1702092]
[1740555530694,0.02189671,88871.0,88870.0,0.0014242]
[1740555531645,0.0008484,88871.0,88870.0,0.0014242]
[1740555534827,0.1696314,88871.0,88870.0,0.0014242]
[1740555535049,0.0008484,88871.0,88870.0,0.0014242]
[1740555536378,0.02189791,88871.0,88870.0,0.0014242]
[1740555537100,0.225029,88878.0,88870.0,0.0014242]
[1740555537306,0.168781,88873.0,88870.0,0.0014242]
[1740555538125,0.168781,88873.0,88870.0,0.0004242]
[1740555538426,0.168781,88873.0,88870.0,0.0014242]
[1740555538916,0.225035,88875.0,88870.0,0.0014242]
[1740555538917,0.225029,88878.0,88870.0,0.0014242]
[1740555539115,0.168775,88876.0,88870.0,0.0014242]
[1740555539819,0.168776,88875.0,88870.0,0.0014242]
[1740555540134,0.168776,88875.0,88870.0,0.0004242]
[1740555540480,0.225029,88878.0,88870.0,0.0004242]
[1740555540678,0.168774,88876.0,88870.0,0.0004242]
[1740555542006,0.225029,88878.0,88870.0,0.0004242]
[1740555542549,0.168776,88875.0,88870.0,0.0004242]
[1740555542940,0.0008484,88876.0,88870.0,0.0004242]
[1740555543148,0.168776,88875.0,88870.0,0.0004242]
[1740555543329,0.0008484,88876.0,88870.0,0.0004242]
[1740555543630,0.1696234,88876.0,88870.0,0.0004242]
[1740555543969,0.0008484,88876.0,88870.0,0.0004242]
[1740555544568,0.1696224,88876.0,88870.0,0.0004242]
[1740555544954,0.168776,88875.0,88870.0,0.0004242]
[1740555545849,0.1696244,88876.0,88870.0,0.0004242]
[1740555546065,0.168776,88875.0,88870.0,0.0004242]
[1740555547439,0.0008484,88876.0,88870.0,0.0004242]
[1740555547654,0.168776,88875.0,88870.0,0.0004242]
[1740555548433,0.168778,88874.0,88870.0,0.0004242]
[1740555548844,0.168783,88871.0,88870.0,0.0004242]
[1740555549482,0.168783,88871.0,88870.0,0.0014242]
[1740555550582,0.168783,88871.0,88870.0,0.0004242]
[1740555550787,0.168783,88871.0,88870.0,0.0024242]
[1740555551862,0.0008484,88876.0,88870.0,0.0024242]
[1740555552067,0.168778,88874.0,88870.0,0.0024242]
[1740555552251,0.168778,88874.0,88871.0,0.01112072]
[1740555552449,0.168782,88872.0,88871.0,0.01112072]
[1740555552821,0.168783,88871.0,88870.0,0.0024242]
[1740555553022,0.168783,88872.0,88870.0,0.0024242]
[1740555553223,0.168783,88871.0,88870.0,0.0004242]
[1740555553783,0.225035,88875.0,88870.0,0.0004242]
[1740555553985,0.168781,88873.0,88870.0,0.0024242]
[1740555554186,0.168781,88873.0,88871.0,0.01112072]
[1740555554411,0.168778,88874.0,88871.0,0.01112072]
[1740555554704,0.16878,88874.0,88871.0,0.01112072]
[1740555555018,0.225035,88875.0,88871.0,0.01112072]
[1740555555218,0.0008484,88876.0,88870.0,0.0024242]
[1740555555462,0.225039,88874.0,88870.0,0.0024242]
[1740555555672,0.168783,88871.0,88870.0,0.0004242]
[1740555556001,0.303018,88882.0,88870.0,0.0014242]
[1740555556402,0.303018,88882.0,88871.0,0.01112072]
[1740555557074,0.168782,88872.0,88871.0,0.01112072]
[1740555557587,0.225039,88874.0,88870.0,0.0004242]
[1740555557841,0.168783,88871.0,88870.0,0.0004242]
[1740555559543,0.168783,88871.0,88870.0,0.0024242]
[1740555562207,0.168779,88874.0,88870.0,0.0024242]
[1740555562345,0.081,88882.0,88870.0,0.0024242]
[1740555562545,0.168778,88874.0,88871.0,0.01112072]
[1740555562847,0.16878,88873.0,88872.0,0.01111929]
[1740555563078,0.225036,88875.0,88870.0,0.0024242]
[1740555563456,0.168783,88871.0,88870.0,0.0004242]
[1740555565501,0.168783,88871.0,88870.0,0.01154635]
[1740555565698,0.168783,88871.0,88870.0,0.0004242]
[1740555566639,0.168783,88871.0,88870.0,0.0024242]
[1740555566844,0.168783,88871.0,88870.0,0.01354635]
[1740555567035,0.168783,88871.0,88870.0,0.0024242]
[1740555569287,0.0008484,88876.0,88870.0,0.0024242]
[1740555569509,0.0008484,88876.0,88875.0,0.168776]
[1740555569684,0.0008484,88876.0,88875.0,0.17035108]
[1740555569890,0.0008484,88876.0,88875.0,0.18146605]
[1740555570283,0.0008484,88876.0,88875.0,0.17989099]
[1740555570486,0.1696224,88876.0,88875.0,0.01111499]
[1740555570631,0.0008484,88876.0,88870.0,0.0024242]
[1740555570834,0.0008484,88876.0,88871.0,0.01112072]
[1740555571198,0.168782,88872.0,88871.0,0.01112072]
[1740555571488,0.225035,88875.0,88871.0,0.01112072]
[1740555571898,0.168782,88872.0,88871.0,0.01112072]
[1740555572497,0.168782,88872.0,88871.0,0.01312072]
[1740555572878,0.168782,88872.0,88871.0,0.01112072]
[1740555573258,0.168782,88872.0,88871.0,0.01312072]
[1740555573644,0.168782,88872.0,88871.0,0.002]
[1740555573842,0.168782,88872.0,88871.0,0.003]
[1740555574319,0.168782,88872.0,88871.0,0.002]
[1740555575247,0.225035,88875.0,88870.0,0.0004242]
[1740555575454,0.168783,88871.0,88870.0,0.0004242]
[1740555576899,0.168783,88871.0,88870.0,0.0024242]
[1740555577068,0.247283,88871.0,88870.0,0.0034242]
[1740555578305,0.247283,88871.0,88870.0,0.0024242]
[1740555578505,0.247283,88871.0,88870.0,0.0004242]
[1740555578730,0.247283,88871.0,88870.0,0.0024242]
[1740555578934,0.247283,88871.0,88870.0,0.0044242]
[1740555579335,0.247283,88871.0,88870.0,0.0024242]
[1740555579610,0.247283,88871.0,88870.0,0.0044242]
[1740555585763,0.547283,88871.0,88870.0,0.0044242]
[1740555585923,0.596883,88871.0,88870.0,0.0044242]
[1740555587894,0.596883,88871.0,88870.0,0.0024242]
[1740555588098,0.596883,88871.0,88870.0,0.0004242]
[1740555588308,0.597883,88871.0,88870.0,0.0004242]
[1740555590124,0.597883,88871.0,88846.0,0.00988]
[1740555590125,0.168848,88837.0,88836.0,7e-05]
[1740555590336,0.468848,88837.0,88836.0,7e-05]
[1740555590716,0.47742198,88837.0,88836.0,7e-05]
[1740555590987,0.6977297,88837.0,88836.0,1e-06]
[1740555591162,0.468871,88825.0,88824.0,2e-07]
[1740555591337,0.545471,88825.0,88824.0,2e-07]
[1740555591684,0.5458877,88825.0,88824.0,2e-07]
[1740555592016,0.65974466,88825.0,88824.0,2e-07]
[1740555592217,0.65974466,88825.0,88789.0,0.10090866]
[1740555592218,0.99016763,88825.0,88789.0,0.10090866]
[1740555592422,0.244417,88801.0,88789.0,0.10090866]
[1740555592811,0.168917,88801.0,88789.0,0.10090866]
[1740555594089,0.17730361,88801.0,88789.0,0.10090866]
[1740555594652,0.17730361,88801.0,88800.0,0.0033]
[1740555596352,0.17830361,88801.0,88800.0,0.0033]
[1740555598310,0.17730361,88801.0,88800.0,0.0033]
[1740555598509,0.17730361,88801.0,88800.0,0.0003]
[1740555598929,0.17730361,88801.0,88800.0,0.0033]
[1740555599565,0.168917,88801.0,88800.0,0.0033]
[1740555600794,0.28382297,88807.0,88800.0,0.003724]
[1740555601102,0.0774,88823.0,88800.0,0.003724]
[1740555601306,0.168917,88801.0,88800.0,0.003724]
[1740555601639,0.168917,88801.0,88800.0,0.000724]
[1740555602088,0.168877,88801.0,88800.0,0.000724]
[1740555602650,0.168877,88801.0,88800.0,0.003724]
[1740555607001,0.18968886,88801.0,88800.0,0.003724]
[1740555609328,0.02081186,88801.0,88800.0,0.003724]
[1740555609668,0.18972886,88801.0,88800.0,0.003724]
[1740555610080,0.168917,88801.0,88800.0,0.003724]
[1740555611292,0.168917,88801.0,88800.0,0.000724]
[1740555611764,0.168917,88801.0,88800.0,0.002724]
[1740555612294,0.18974555,88801.0,88800.0,0.002724]
[1740555612613,0.19059435,88801.0,88800.0,0.002724]
[1740555613019,0.19059435,88801.0,88800.0,0.000724]
[1740555613396,0.19059435,88801.0,88800.0,0.002724]
[1740555614300,0.02167735,88801.0,88800.0,0.002724]
[1740555614497,0.02167735,88801.0,88800.0,0.220242]
[1740555614720,0.0008488,88801.0,88800.0,0.23146457]
[1740555615088,0.0008488,88801.0,88800.0,0.22946457]
[1740555615291,0.0008488,88801.0,88800.0,0.23246457]
[1740555615710,0.0008488,88801.0,88800.0,0.31006457]
[1740555615910,0.0008488,88801.0,88800.0,0.31306457]
[1740555616089,0.0018488,88801.0,88800.0,0.31406457]
[1740555616292,0.0018488,88801.0,88800.0,0.31106457]
[1740555616492,0.0008488,88801.0,88800.0,0.31006457]
[1740555616721,0.0008488,88801.0,88800.0,0.62760542]
[1740555616926,0.0008488,88801.0,88800.0,0.95370542]
[1740555616927,0.0018488,88801.0,88800.0,0.95370542]
[1740555617178,0.00076814,88801.0,88800.0,0.95370542]
[1740555617362,0.00076814,88801.0,88800.0,0.98343297]
[1740555617562,0.00076814,88801.0,88800.0,0.95370542]
[1740555617951,0.00076814,88801.0,88800.0,0.95070542]
[1740555618275,0.16888,88820.0,88800.0,0.94970542]
[1740555618521,0.16888,88820.0,88814.0,0.168891]
[1740555618701,0.16888,88820.0,88815.0,0.02120104]
[1740555618907,0.168877,88822.0,88816.0,0.0762]
[1740555619056,0.168879,88821.0,88817.0,0.01119817]
[1740555619262,0.225169,88823.0,88817.0,0.01119817]
[1740555619490,0.169881,88820.0,88817.0,0.01119817]
[1740555619646,0.001,88820.0,88817.0,0.01119817]
[1740555619851,0.0004167,88825.0,88817.0,0.01119817]
[1740555620083,0.0004167,88825.0,88824.0,0.168873]
[1740555620297,0.0004167,88825.0,88824.0,0.17906112]
[1740555620680,0.1692877,88825.0,88824.0,0.01118812]
[1740555620875,0.0004167,88825.0,88817.0,0.001]
[1740555621079,0.0004167,88825.0,88818.0,0.01119673]
[1740555621493,0.0004167,88825.0,88819.0,0.225177]
[1740555621834,0.0004167,88825.0,88824.0,0.003]
[1740555622050,0.0004167,88825.0,88824.0,0.171873]
[1740555622268,0.0004167,88825.0,88824.0,0.18006112]
[1740555622663,0.0004167,88825.0,88824.0,0.01118812]
[1740555623052,0.0004167,88825.0,88824.0,0.003]
[1740555623206,0.0004167,88825.0,88824.0,0.01418812]
[1740555623423,0.0004167,88825.0,88824.0,0.003]
[1740555623630,0.0004167,88825.0,88824.0,0.01418812]
[1740555624152,0.0004167,88825.0,88824.0,0.01718812]
[1740555624307,0.02920356,88837.0,88824.0,0.01718812]
[1740555624516,0.168871,88825.0,88824.0,0.01731389]
[1740555624741,0.168871,88825.0,88824.0,0.00612577]
[1740555624957,0.1697198,88825.0,88824.0,0.00612577]
[1740555625661,0.1697198,88825.0,88824.0,0.00312577]
[1740555626779,0.1697198,88825.0,88824.0,0.00712577]
[1740555627193,0.0008488,88825.0,88824.0,0.00712577]
[1740555627396,0.0008488,88825.0,88824.0,0.01831389]
[1740555627619,0.0008488,88825.0,88824.0,0.00712577]
[1740555627831,0.0008488,88825.0,88824.0,0.01831389]
[1740555627996,0.0008488,88825.0,88824.0,0.00712577]
[1740555628177,0.0008488,88825.0,88824.0,0.01831389]
[1740555628375,0.1697198,88825.0,88824.0,0.00712577]
[1740555628582,0.1697198,88825.0,88824.0,0.01831389]
[1740555628879,0.0008488,88825.0,88824.0,0.01831389]
[1740555629106,0.0008488,88825.0,88824.0,0.00712577]
[1740555629324,0.0008488,88825.0,88824.0,0.01831389]
[1740555630568,0.1697198,88825.0,88824.0,0.01831389]
[1740555630748,0.0008488,88825.0,88824.0,0.00712577]
[1740555630967,0.0008488,88825.0,88824.0,0.01831389]
[1740555631168,0.0008488,88825.0,88824.0,0.00712577]
[1740555631437,0.1697198,88825.0,88824.0,0.00712577]
[1740555632363,0.1697198,88825.0,88824.0,0.00412577]
[1740555632785,0.1697198,88825.0,88824.0,0.00512577]
[1740555633138,0.1697198,88825.0,88824.0,0.00112577]
[1740555633341,0.1697198,88825.0,88824.0,0.00412577]
[1740555633904,0.1697198,88825.0,88824.0,0.00112577]
[1740555634106,0.1697198,88825.0,88824.0,0.00412577]
[1740555634451,0.1697198,88825.0,88824.0,0.00312577]
[1740555635054,0.1687298,88825.0,88824.0,0.00412577]
[1740555636025,0.1687298,88825.0,88824.0,0.00512577]
[1740555636227,0.18965187,88825.0,88824.0,0.00212577]
[1740555636523,0.18965187,88825.0,88824.0,0.00012577]
[1740555637751,0.18965187,88825.0,88824.0,0.00412577]
[1740555637949,0.18965187,88825.0,88824.0,0.00312577]
[1740555638177,0.18965187,88825.0,88824.0,0.00055007]
[1740555638377,0.18965187,88825.0,88824.0,0.00155007]
[1740555638593,0.18965187,88825.0,88824.0,0.00255007]
[1740555639008,0.18965187,88825.0,88824.0,0.00355007]
[1740555639428,0.18965187,88825.0,88824.0,0.00455007]
[1740555640275,0.02092207,88825.0,88824.0,0.00455007]
[1740555640477,0.02092207,88825.0,88824.0,0.17342307]
[1740555640627,0.02092207,88825.0,88824.0,0.01573819]
[1740555640827,0.02092207,88825.0,88824.0,0.18461119]
[1740555642216,0.02092207,88825.0,88824.0,0.18261119]
[1740555642411,0.0008486,88830.0,88824.0,0.01173819]
[1740555642627,0.0008486,88830.0,88826.0,0.168869]
[1740555642934,0.1697116,88830.0,88827.0,0.01118382]
[1740555643143,0.1697116,88830.0,88824.0,0.17542307]
[1740555643336,0.02915893,88837.0,88825.0,0.18005769]
[1740555643575,0.02097754,88829.0,88825.0,0.18005769]
[1740555644121,0.02097754,88829.0,88826.0,0.168869]
[1740555644346,0.02097754,88829.0,88827.0,0.01118382]
[1740555644941,0.02968732,88837.0,88832.0,0.168857]
[1740555645143,0.18956363,88874.0,88833.0,0.01117521]
[1740555645344,0.16885,88836.0,88829.0,0.168861]
[1740555645545,0.16885,88836.0,88830.0,0.01117951]
[1740555645745,0.02979359,88837.0,88830.0,0.01117951]
[1740555645943,0.168853,88835.0,88827.0,0.001]
[1740555646206,0.168853,88835.0,88828.0,0.168865]
[1740555646386,0.168855,88834.0,88827.0,0.168867]
[1740555646587,0.225133,88837.0,88833.0,0.001]
[1740555646786,0.225123,88840.0,88833.0,0.001]
[1740555646990,0.168848,88838.0,88834.0,0.01117377]
[1740555647408,0.168848,88838.0,88833.0,0.001]
[1740555647570,0.168848,88838.0,88835.0,0.01117234]